bitfinex/quotes_BTCUSD_20240927
["timestamp","ask_amount","ask_price","bid_price","bid_amount"]
[1727470485481,0.17065024,65960.0,65959.0,0.56158748]
[1727470486197,0.17065024,65960.0,65959.0,0.54758748]
[1727470486198,0.00035024,65960.0,65959.0,0.54758748]
[1727470486409,0.00035024,65960.0,65959.0,0.53358748]
[1727470486849,0.00035024,65960.0,65959.0,0.54758748]
[1727470487709,0.00035024,65960.0,65959.0,0.56158748]
[1727470490787,0.00035024,65960.0,65959.0,0.54758748]
[1727470491044,0.00035024,65960.0,65959.0,0.56158748]
[1727470491299,0.00035024,65960.0,65959.0,0.54758748]
[1727470491547,0.00035024,65960.0,65959.0,0.56158748]
[1727470492035,0.00035024,65960.0,65959.0,0.54758748]
[1727470492514,0.00035024,65960.0,65959.0,0.56158748]
[1727470500185,0.00035024,65960.0,65959.0,0.5615263]
[1727470500425,0.00035024,65960.0,65959.0,0.72527303]
[1727470500688,0.22645098,65976.0,65975.0,0.251572]
[1727470500929,0.22645098,65976.0,65975.0,0.5901767]
[1727470501441,0.22645098,65976.0,65975.0,0.62341016]
[1727470501446,0.22645098,65976.0,65975.0,0.53294671]
[1727470501681,0.1724,65978.0,65977.0,0.151567]
[1727470501927,0.1724,65978.0,65977.0,0.46330633]
[1727470502398,0.1724,65978.0,65977.0,0.41809624]
[1727470502860,0.1724,65978.0,65977.0,0.41809623]
[1727470503102,0.1724,65978.0,65977.0,0.43109623]
[1727470503584,0.1724,65978.0,65977.0,0.41809623]
[1727470503819,0.1724,65978.0,65977.0,0.43109623]
[1727470504340,0.1724,65978.0,65977.0,0.44209623]
[1727470504806,0.1724,65978.0,65977.0,0.43109623]
[1727470505037,0.1724,65978.0,65977.0,0.44509623]
[1727470505278,0.1724,65978.0,65977.0,0.43209623]
[1727470505538,0.1724,65978.0,65977.0,0.44609623]
[1727470507714,0.1724,65978.0,65977.0,0.44609622]
[1727470512906,0.173228,65978.0,65977.0,0.44609622]
[1727470515551,0.173228,65978.0,65977.0,0.44609621]
[1727470517330,0.173228,65978.0,65977.0,0.29080827]
[1727470519999,0.173228,65978.0,65977.0,0.29080826]
[1727470523177,0.173228,65978.0,65977.0,0.27680826]
[1727470523636,0.173228,65978.0,65977.0,0.28780826]
[1727470523886,0.173228,65978.0,65977.0,0.27380826]
[1727470524397,0.173228,65978.0,65977.0,0.28680826]
[1727470526068,0.081328,65978.0,65977.0,0.28680826]
[1727470526328,0.000828,65978.0,65977.0,0.28680826]
[1727470526579,0.000828,65978.0,65977.0,0.4420962]
[1727470526852,0.000828,65978.0,65977.0,0.44209619]
[1727470527330,0.000828,65978.0,65977.0,0.53839619]
[1727470528002,0.000828,65978.0,65977.0,0.44209619]
[1727470528235,0.000828,65978.0,65977.0,0.44209618]
[1727470532396,0.000828,65978.0,65977.0,0.44209617]
[1727470536547,0.000828,65978.0,65977.0,0.42909617]
[1727470536759,0.000828,65978.0,65977.0,0.43209617]
[1727470537682,0.000828,65978.0,65977.0,0.44609617]
[1727470537893,0.000828,65978.0,65977.0,0.45320169]
[1727470541220,0.000828,65978.0,65977.0,0.45320168]
[1727470549635,0.000828,65978.0,65977.0,0.45320167]
[1727470554374,0.000828,65978.0,65977.0,0.62570167]
[1727470556081,0.000828,65978.0,65977.0,0.54840167]
[1727470557701,0.000828,65978.0,65977.0,0.54840166]
[1727470558947,0.079628,65978.0,65977.0,0.29791372]
[1727470562219,0.170028,65978.0,65977.0,0.29791372]
[1727470564665,0.170028,65978.0,65977.0,0.29791371]
[1727470573402,0.170028,65978.0,65977.0,0.19791371]
[1727470582497,0.170028,65978.0,65977.0,0.19081682]
[1727470585259,0.1985153,65978.0,65977.0,0.19081682]
[1727470585489,0.1985153,65978.0,65977.0,0.19081681]
[1727470587058,0.170028,65978.0,65977.0,0.19081681]
[1727470588859,0.079628,65978.0,65977.0,0.19081681]
[1727470591756,0.000828,65978.0,65977.0,0.19081681]
[1727470609566,0.000828,65978.0,65977.0,0.1908168]
[1727470610036,0.11567303,65978.0,65977.0,0.1908168]
[1727470610277,0.15855087,65978.0,65977.0,0.1908168]
[1727470610756,0.15855087,65978.0,65977.0,0.1768168]
[1727470610982,0.15855087,65978.0,65977.0,0.1628168]
[1727470611431,0.15855087,65978.0,65977.0,0.1708168]
[1727470611896,0.15855087,65978.0,65977.0,0.1808168]
[1727470612621,0.000828,65978.0,65977.0,0.1808168]
[1727470612845,0.11567303,65978.0,65977.0,0.1808168]
[1727470613094,0.11567303,65978.0,65977.0,0.1708168]
[1727470613549,0.11567303,65978.0,65977.0,0.1808168]
[1727470619772,0.000828,65978.0,65977.0,0.1808168]
[1727470629993,0.000828,65978.0,65977.0,0.0292498]
[1727470630207,0.26271426,65978.0,65977.0,0.0292498]
[1727470630437,0.50625965,65978.0,65977.0,0.018624]
[1727470630687,0.55176002,65978.0,65977.0,0.018624]
[1727470630913,0.46075929,65978.0,65977.0,0.018624]
[1727470631151,0.5744952,65978.0,65977.0,0.018624]
[1727470632055,0.46075929,65978.0,65977.0,0.018624]
[1727470632724,0.5517277,65978.0,65977.0,0.018624]
[1727470632945,0.55172782,65978.0,65977.0,0.018624]
[1727470633881,0.60449736,65978.0,65977.0,0.018624]
[1727470634587,0.62825777,65978.0,65977.0,0.018624]
[1727470634804,0.62825777,65978.0,65977.0,0.008624]
[1727470635040,0.62825777,65978.0,65977.0,0.010624]
[1727470635473,0.62825777,65978.0,65977.0,0.000624]
[1727470635699,0.60449736,65978.0,65977.0,0.000624]
[1727470635930,0.61049736,65978.0,65977.0,0.001624]
[1727470636435,0.74699846,65978.0,65977.0,0.002624]
[1727470637327,0.61049736,65978.0,65977.0,0.002624]
[1727470643311,0.72394825,65978.0,65977.0,0.002624]
[1727470643534,0.7477115,65978.0,65977.0,0.002624]
[1727470643999,0.74771023,65978.0,65977.0,0.002624]
[1727470644675,0.72394698,65978.0,65977.0,0.002624]
[1727470648243,0.61049736,65978.0,65977.0,0.002624]
[1727470648472,0.72394698,65978.0,65977.0,0.002624]
[1727470648970,0.72391498,65978.0,65977.0,0.002624]
[1727470649205,0.61049736,65978.0,65977.0,0.002624]
[1727470649439,0.72391498,65978.0,65977.0,0.002624]
[1727470650645,0.72391379,65978.0,65977.0,0.002624]
[1727470653452,0.74767696,65978.0,65977.0,0.002624]
[1727470654137,0.74768805,65978.0,65977.0,0.002624]
[1727470655345,0.63426053,65978.0,65977.0,0.002624]
[1727470658510,0.63206674,65978.0,65977.0,0.002624]
[1727470664099,0.60913157,65978.0,65977.0,0.002624]
[1727470669605,0.60913157,65978.0,65962.0,0.0490035]
[1727470669606,0.005,65968.0,65962.0,0.0490035]
[1727470669821,0.1687,65969.0,65962.0,0.0490035]
[1727470669822,0.21973971,65963.0,65962.0,0.0490035]
[1727470670041,0.21973971,65963.0,65960.0,0.001656]
[1727470670042,0.151604,65961.0,65960.0,0.001656]
[1727470670257,0.31704027,65961.0,65960.0,0.001656]
[1727470670491,0.53709141,65961.0,65960.0,0.001656]
[1727470670694,0.51437412,65961.0,65960.0,0.001656]
[1727470671610,0.51637412,65961.0,65960.0,0.001656]
[1727470672078,0.51837412,65961.0,65960.0,0.001656]
[1727470672299,0.54214192,65961.0,65960.0,0.001656]
[1727470672964,0.54014192,65961.0,65960.0,0.001656]
[1727470673189,0.44928004,65961.0,65960.0,0.001656]
[1727470673443,0.45228004,65961.0,65960.0,0.001656]
[1727470675242,0.56587902,65961.0,65960.0,0.001656]
[1727470676120,0.45228004,65961.0,65960.0,0.001656]
[1727470678487,0.56594025,65961.0,65960.0,0.001656]
[1727470678696,0.45228004,65961.0,65960.0,0.001656]
[1727470681821,0.45028004,65961.0,65960.0,0.001656]
[1727470683117,0.56593128,65961.0,65960.0,0.001656]
[1727470683533,0.54216348,65961.0,65960.0,0.001656]
[1727470683966,0.42731845,65961.0,65960.0,0.001656]
[1727470684183,0.54216348,65961.0,65960.0,0.001656]
[1727470690673,0.42731845,65961.0,65960.0,0.001656]
[1727470690859,0.54216348,65961.0,65960.0,0.001656]
[1727470692306,0.54016348,65961.0,65960.0,0.001656]
[1727470697175,0.540133,65961.0,65960.0,0.001656]
[1727470697856,0.56390055,65961.0,65960.0,0.001656]
[1727470700297,0.56590055,65961.0,65960.0,0.001656]
[1727470701223,0.45227979,65961.0,65960.0,0.001656]
[1727470705284,0.43227979,65961.0,65960.0,0.001656]
[1727470706144,0.43727979,65961.0,65960.0,0.001656]
[1727470706419,0.57362471,65961.0,65960.0,0.001656]
[1727470706643,0.43727979,65961.0,65960.0,0.001656]
[1727470706833,0.57369988,65961.0,65960.0,0.001656]
[1727470707094,0.43727979,65961.0,65960.0,0.001656]
[1727470710918,0.32880782,65961.0,65960.0,0.001656]
[1727470711146,0.30504027,65961.0,65960.0,0.001656]
[1727470712727,0.30704027,65961.0,65960.0,0.001656]
[1727470713179,0.30504027,65961.0,65960.0,0.001656]
[1727470714302,0.4414993,65961.0,65960.0,0.001656]
[1727470714537,0.4413494,65961.0,65960.0,0.001656]
[1727470715264,0.57792404,65961.0,65960.0,0.001656]
[1727470715493,0.4413494,65961.0,65960.0,0.001656]
[1727470717327,0.4433494,65961.0,65960.0,0.001656]
[1727470718477,0.4413494,65961.0,65960.0,0.001656]
[1727470719824,0.4413494,65961.0,65960.0,0.00207211]
[1727470719825,0.46511756,65961.0,65960.0,0.00207211]
[1727470723149,0.46711756,65961.0,65960.0,0.00207211]
[1727470724700,0.46594556,65961.0,65960.0,0.00207211]
[1727470728927,0.46794556,65961.0,65960.0,0.00207211]
[1727470730606,0.57464556,65961.0,65960.0,0.00207211]
[1727470730865,0.72635822,65961.0,65960.0,0.00207211]
[1727470731053,0.5488774,65961.0,65960.0,0.00207211]
[1727470732613,0.5508774,65961.0,65960.0,0.00207211]
[1727470733740,0.35471504,65961.0,65960.0,0.00207211]
[1727470733964,0.33463773,65961.0,65960.0,0.00207211]
[1727470734179,0.31586827,65961.0,65960.0,0.00207211]
[1727470734401,0.33963637,65961.0,65960.0,0.00207211]
[1727470734616,0.36263637,65961.0,65960.0,0.00207211]
[1727470734855,0.82024813,65961.0,65960.0,0.00207212]
[1727470735109,0.66655633,65961.0,65960.0,0.00207212]
[1727470735738,0.66355633,65961.0,65960.0,0.00207212]
[1727470735947,0.66955633,65961.0,65960.0,0.00307212]
[1727470736573,0.66355633,65961.0,65960.0,0.00207212]
[1727470736789,0.67155633,65961.0,65960.0,0.00307212]
[1727470737018,0.67955633,65961.0,65960.0,0.00407212]
[1727470737294,0.67155633,65961.0,65960.0,0.00307212]
[1727470737516,0.70532574,65961.0,65960.0,0.00407212]
[1727470738337,0.70732574,65961.0,65960.0,0.00407212]
[1727470742750,0.86712574,65961.0,65960.0,0.00407212]
[1727470742938,0.70732574,65961.0,65960.0,0.00407212]
[1727470744562,0.80732574,65961.0,65960.0,0.00407212]
[1727470746228,0.268607,65960.0,65959.0,0.001656]
[1727470746463,0.49864376,65960.0,65959.0,0.001656]
[1727470747884,0.50664376,65960.0,65959.0,0.001656]
[1727470748116,0.51264376,65960.0,65959.0,0.002656]
[1727470750457,0.153623,65953.0,65952.0,0.001656]
[1727470750677,0.31997875,65953.0,65952.0,0.001656]
[1727470751124,0.34375058,65953.0,65952.0,0.001656]
[1727470751810,0.34375058,65953.0,65952.0,0.002656]
[1727470753247,0.34475058,65953.0,65952.0,0.002656]
[1727470753486,0.49205342,65953.0,65952.0,0.002656]
[1727470753954,0.49105342,65953.0,65952.0,0.002656]
[1727470754192,0.49305342,65953.0,65952.0,0.002656]
[1727470755368,0.50305342,65953.0,65952.0,0.002656]
[1727470756491,0.50305342,65953.0,65952.0,0.001656]
[1727470757701,0.51105342,65953.0,65952.0,0.002656]
[1727470758426,0.64749122,65953.0,65952.0,0.002656]
[1727470760366,0.64749154,65953.0,65952.0,0.002656]
[1727470760588,0.51105342,65953.0,65952.0,0.002656]
[1727470760840,0.64749032,65953.0,65952.0,0.002656]
[1727470761275,0.64549032,65953.0,65952.0,0.002656]
[1727470761523,0.50905342,65953.0,65952.0,0.002656]
[1727470762010,0.64749336,65953.0,65952.0,0.002656]
[1727470762471,0.51105342,65953.0,65952.0,0.002656]
[1727470763413,0.6475013,65953.0,65952.0,0.002656]
[1727470763643,0.51105342,65953.0,65952.0,0.002656]
[1727470769436,0.61345342,65953.0,65952.0,0.002656]
[1727470769656,0.58968159,65953.0,65952.0,0.002656]
[1727470771371,0.74324191,65953.0,65952.0,0.002656]
[1727470774312,0.74327981,65953.0,65952.0,0.002656]
[1727470776378,0.58968159,65953.0,65952.0,0.002656]
[1727470777061,0.61345445,65953.0,65952.0,0.002656]
[1727470778718,0.52105445,65953.0,65952.0,0.002656]
[1727470779156,0.6746864,65953.0,65952.0,0.002656]
[1727470779625,0.52105445,65953.0,65952.0,0.002656]
[1727470780294,0.59605445,65953.0,65952.0,0.002656]
[1727470787683,0.57228159,65953.0,65952.0,0.002656]
[1727470789694,0.59528159,65953.0,65952.0,0.002656]
[1727470790781,0.61905471,65953.0,65952.0,0.002656]
[1727470792074,0.59528159,65953.0,65952.0,0.002656]
[1727470796221,0.52028159,65953.0,65952.0,0.002656]
[1727470796766,0.52028159,65953.0,65952.0,0.00293352]
[1727470801655,0.37543656,65953.0,65952.0,0.00293352]
[1727470801884,0.38184689,65953.0,65952.0,0.10223352]
[1727470802109,0.22813372,65953.0,65952.0,0.10223352]
[1727470803848,0.22813372,65953.0,65952.0,0.00293352]
[1727470807375,0.36470443,65953.0,65952.0,0.00293352]
[1727470807611,0.52109249,65953.0,65952.0,0.00293352]
[1727470807880,0.22313372,65953.0,65952.0,0.16993352]
[1727470809480,0.24690385,65953.0,65952.0,0.16993352]
[1727470809701,0.09528085,65953.0,65952.0,0.16993352]
[1727470809934,0.24690385,65953.0,65952.0,0.16993352]
[1727470810186,0.24690385,65953.0,65952.0,0.32155852]
[1727470810187,0.13376822,65953.0,65952.0,0.32155852]
[1727470810415,0.02,65953.0,65952.0,0.32155852]
[1727470810653,0.05349638,65953.0,65952.0,0.32155852]
[1727470810874,0.04549638,65953.0,65952.0,0.32055852]
[1727470811109,0.002,65953.0,65952.0,0.32055852]
[1727470811331,0.002,65953.0,65952.0,0.43540355]
[1727470811836,0.002,65953.0,65952.0,0.32055859]
[1727470812718,0.002,65953.0,65952.0,0.32155859]
[1727470812936,0.22727898,65959.0,65952.0,0.32155859]
[1727470812937,0.22727898,65959.0,65958.0,0.151611]
[1727470813158,0.22727898,65959.0,65958.0,0.31888859]
[1727470813619,0.02459514,65959.0,65958.0,0.31888859]
[1727470814524,0.02559514,65959.0,65958.0,0.31888859]
[1727470816516,0.05488176,65959.0,65958.0,0.31888859]
[1727470816772,0.02559514,65959.0,65958.0,0.31888859]
[1727470817216,0.02559514,65959.0,65958.0,0.31888858]
[1727470817429,0.02559514,65959.0,65958.0,0.32972503]
[1727470827816,0.02559514,65959.0,65958.0,0.17811403]
[1727470828231,0.02559514,65959.0,65958.0,0.32972503]
[1727470829958,0.02559514,65959.0,65958.0,0.17811403]
[1727470830614,0.02559514,65959.0,65958.0,0.17977003]
[1727470831643,0.02559514,65959.0,65958.0,0.33138103]
[1727470833112,0.02459514,65959.0,65958.0,0.18177003]
[1727470833321,0.08410296,65959.0,65958.0,0.18277003]
[1727470833529,0.08410296,65959.0,65958.0,0.33438103]
[1727470833733,0.02459514,65959.0,65958.0,0.18277003]
[1727470834806,0.02459514,65959.0,65958.0,0.33438103]
[1727470841432,0.000828,65959.0,65958.0,0.33438103]
[1727470852117,0.02459348,65959.0,65958.0,0.33438103]
[1727470853387,0.000828,65959.0,65958.0,0.33438103]
[1727470853562,0.02988508,65959.0,65958.0,0.33438103]
[1727470855198,0.0753056,65959.0,65958.0,0.33438102]
[1727470855398,0.02988508,65959.0,65958.0,0.33438102]
[1727470855803,0.000828,65959.0,65958.0,0.33438102]
[1727470856005,0.04635728,65959.0,65958.0,0.33438102]
[1727470856406,0.06915074,65959.0,65958.0,0.33438102]
[1727470856810,0.000828,65959.0,65958.0,0.44922605]
[1727470857793,0.000828,65959.0,65958.0,0.44722605]
[1727470858230,0.001828,65959.0,65958.0,0.45322605]
[1727470858493,0.001828,65959.0,65958.0,0.45222605]
[1727470858933,0.002828,65959.0,65958.0,0.45322605]
[1727470860930,0.002828,65959.0,65958.0,0.33838102]
[1727470865871,0.002828,65959.0,65958.0,0.01977002]
[1727470866117,0.0146781,65959.0,65958.0,0.01977002]
[1727470866341,0.08294971,65959.0,65958.0,0.00893357]
[1727470866825,0.0146781,65959.0,65958.0,0.00893357]
[1727470867297,0.08294865,65959.0,65958.0,0.00893357]
[1727470867577,0.23455765,65959.0,65958.0,0.02508675]
[1727470867804,0.0146781,65959.0,65958.0,0.00893357]
[1727470868037,0.1662871,65959.0,65958.0,0.02508675]
[1727470868276,0.1662871,65959.0,65958.0,0.00893357]
[1727470870369,0.19005334,65959.0,65958.0,0.00893357]
[1727470873190,0.19005334,65959.0,65958.0,0.02508675]
[1727470873403,0.2583196,65959.0,65958.0,0.00893357]
[1727470873830,0.2583196,65959.0,65958.0,0.02508675]
[1727470874046,0.2583196,65959.0,65958.0,0.00893357]
[1727470874291,0.2583196,65959.0,65958.0,0.02508675]
[1727470874521,0.2583196,65959.0,65958.0,0.00893357]
[1727470874757,0.2583196,65959.0,65958.0,0.02508675]
[1727470874990,0.2583196,65959.0,65958.0,0.00893357]
[1727470875232,0.2583196,65959.0,65958.0,0.02508675]
[1727470875456,0.2583196,65959.0,65958.0,0.00893357]
[1727470876151,0.2583196,65959.0,65958.0,0.02508675]
[1727470876386,0.2464695,65959.0,65958.0,0.02511323]
[1727470877372,0.0948605,65959.0,65958.0,0.02511323]
[1727470877806,0.0948605,65959.0,65958.0,0.17672423]
[1727470878043,0.0948605,65959.0,65958.0,0.02511323]
[1727470878498,0.0948605,65959.0,65958.0,0.17672423]
[1727470878950,0.02659424,65959.0,65958.0,0.17672423]
[1727470879179,0.07210243,65959.0,65958.0,0.17672423]
[1727470881514,0.12186019,65959.0,65958.0,0.02511323]
[1727470881739,0.12186019,65959.0,65958.0,0.17672423]
[1727470881950,0.076352,65959.0,65958.0,0.02511323]
[1727470882171,0.12186162,65959.0,65958.0,0.02511323]
[1727470882631,0.076352,65959.0,65958.0,0.02511323]
[1727470882836,0.12186166,65959.0,65958.0,0.02511323]
[1727470884470,0.076352,65959.0,65958.0,0.02511323]
[1727470885673,0.227961,65959.0,65958.0,0.02511323]
[1727470885922,0.12186169,65959.0,65958.0,0.02511323]
[1727470886113,0.076352,65959.0,65958.0,0.02511323]
[1727470887313,0.12186171,65959.0,65958.0,0.02511323]
[1727470888882,0.12186102,65959.0,65958.0,0.02511323]
[1727470890190,0.12186102,65959.0,65958.0,0.00893357]
[1727470890609,0.12186102,65959.0,65958.0,0.02559739]
[1727470890876,0.12186102,65959.0,65958.0,0.00893357]
[1727470891303,0.121861,65959.0,65958.0,0.02557682]
[1727470891517,0.121861,65959.0,65958.0,0.00893357]
[1727470891729,0.121861,65959.0,65958.0,0.02557682]
[1727470891958,0.121861,65959.0,65958.0,0.00893357]
[1727470892187,0.07120324,65959.0,65958.0,0.00893357]
[1727470892418,0.07120324,65959.0,65958.0,0.02557682]
[1727470892848,0.07110324,65959.0,65958.0,0.02557682]
[1727470893055,0.07080324,65959.0,65958.0,0.02557682]
[1727470893268,0.07040324,65959.0,65958.0,0.02557682]
[1727470893482,0.07030324,65959.0,65958.0,0.02557682]
[1727470893696,0.07010324,65959.0,65958.0,0.02557682]
[1727470893926,0.06970313,65959.0,65958.0,0.02557682]
[1727470894172,0.06930313,65959.0,65958.0,0.02557682]
[1727470894661,0.06910313,65959.0,65958.0,0.02557682]
[1727470894899,0.06870313,65959.0,65958.0,0.02557682]
[1727470895130,0.06840313,65959.0,65958.0,0.02557682]
[1727470895368,0.21991213,65959.0,65958.0,0.02557682]
[1727470895629,0.21971213,65959.0,65958.0,0.02557682]
[1727470895861,0.0675033,65959.0,65958.0,0.02557682]
[1727470896127,0.19701806,65959.0,65958.0,0.02557682]
[1727470896358,0.19671806,65959.0,65958.0,0.02557682]
[1727470897281,0.04510906,65959.0,65958.0,0.17718782]
[1727470897533,0.06826334,65960.0,65958.0,0.02557682]
[1727470897773,0.21987234,65960.0,65958.0,0.02557682]
[1727470898475,0.06826334,65960.0,65958.0,0.17718682]
[1727470898731,0.06826334,65960.0,65958.0,0.02557682]
[1727470898943,0.21987034,65960.0,65958.0,0.01957682]
[1727470899630,0.06909134,65961.0,65958.0,0.01857682]
[1727470899886,0.22069734,65961.0,65958.0,0.02057682]
[1727470900153,0.06909134,65961.0,65958.0,0.02057682]
[1727470900380,0.06909134,65961.0,65960.0,0.250007]
[1727470900602,0.06909134,65961.0,65960.0,0.09867757]
[1727470901082,0.06909134,65961.0,65960.0,0.11530617]
[1727470901083,0.000828,65961.0,65960.0,0.11530617]
[1727470901329,0.06909134,65961.0,65960.0,0.11530617]
[1727470901789,0.06909134,65961.0,65960.0,0.01690617]
[1727470902014,0.06909134,65961.0,65960.0,0.01890617]
[1727470902918,0.06909134,65961.0,65960.0,0.17051317]
[1727470903162,0.000828,65961.0,65960.0,0.17051317]
[1727470903402,0.000828,65961.0,65960.0,0.17251317]
[1727470903662,0.06909134,65961.0,65960.0,0.17251317]
[1727470904168,0.000828,65961.0,65960.0,0.17251317]
[1727470904400,0.06909134,65961.0,65960.0,0.17251317]
[1727470905179,0.06909134,65961.0,65960.0,0.02090617]
[1727470905637,0.06909134,65961.0,65960.0,0.17251317]
[1727470906778,0.06909134,65961.0,65960.0,0.02090617]
[1727470907007,0.06909134,65961.0,65960.0,0.17251317]
[1727470907235,0.06909134,65961.0,65960.0,0.02090617]
[1727470907629,0.06909134,65961.0,65960.0,0.17251317]
[1727470907828,0.000828,65961.0,65960.0,0.17251317]
[1727470909684,0.09184579,65961.0,65960.0,0.17251317]
[1727470910118,0.000828,65961.0,65960.0,0.17251317]
[1727470910552,0.09184579,65961.0,65960.0,0.17251317]
[1727470910766,0.09184579,65961.0,65960.0,0.02090617]
[1727470911702,0.09191851,65961.0,65960.0,0.02090617]
[1727470911919,0.09191852,65961.0,65960.0,0.02090617]
[1727470912127,0.000828,65961.0,65960.0,0.02090617]
[1727470912304,0.0919185,65961.0,65960.0,0.02090617]
[1727470912513,0.000828,65961.0,65960.0,0.17251317]
[1727470912957,0.09191803,65961.0,65960.0,0.17251317]
[1727470913683,0.09191837,65961.0,65960.0,0.17251317]
[1727470914955,0.0919187,65961.0,65960.0,0.17251317]
[1727470916721,0.000828,65961.0,65960.0,0.17251317]
[1727470917151,0.0919187,65961.0,65960.0,0.17251317]
[1727470918704,0.09192259,65961.0,65960.0,0.17251317]
[1727470919145,0.000828,65961.0,65960.0,0.17251317]
[1727470919385,0.09192259,65961.0,65960.0,0.17251317]
[1727470920459,0.06914964,65961.0,65960.0,0.17251317]
[1727470920720,0.000828,65961.0,65960.0,0.26581317]
[1727470920955,0.000828,65961.0,65960.0,0.34884491]
[1727470921182,0.000828,65961.0,65960.0,0.34581317]
[1727470921641,0.000828,65961.0,65960.0,0.34381317]
[1727470921886,0.001828,65961.0,65960.0,0.50410111]
[1727470922306,0.001828,65961.0,65960.0,0.49910111]
[1727470922307,0.000828,65961.0,65960.0,0.49910111]
[1727470922526,0.000828,65961.0,65960.0,0.59910111]
[1727470923003,0.000828,65961.0,65960.0,0.59710111]
[1727470923462,0.000828,65961.0,65960.0,0.60110111]
[1727470923463,0.001828,65961.0,65960.0,0.60110111]
[1727470923698,0.000828,65961.0,65960.0,0.60110376]
[1727470924101,0.001828,65961.0,65960.0,0.60510376]
[1727470924374,0.001828,65961.0,65960.0,0.61610376]
[1727470924807,0.22645098,65975.0,65974.0,0.151574]
[1727470925021,0.22645098,65975.0,65974.0,0.60108454]
[1727470925260,0.22645098,65975.0,65974.0,0.61754586]
[1727470925485,0.000828,65977.0,65976.0,0.15157]
[1727470925717,0.000828,65977.0,65976.0,0.15487849]
[1727470925931,0.000828,65977.0,65976.0,0.17133894]
[1727470926819,0.000828,65977.0,65976.0,0.32662688]
[1727470927050,0.000828,65977.0,65976.0,0.42239595]
[1727470927281,0.001828,65977.0,65976.0,0.42639595]
[1727470927720,0.002828,65977.0,65976.0,0.43739595]
[1727470927936,0.001828,65977.0,65976.0,0.43339595]
[1727470928805,0.000828,65977.0,65976.0,0.42239594]
[1727470929084,0.001828,65977.0,65976.0,0.43339594]
[1727470929315,0.002828,65977.0,65976.0,0.43739594]
[1727470929534,0.001828,65977.0,65976.0,0.43339594]
[1727470929748,0.002828,65977.0,65976.0,0.43739594]
[1727470930649,0.001828,65977.0,65976.0,0.42639594]
[1727470930871,0.002828,65977.0,65976.0,0.43739594]
[1727470931109,0.001828,65977.0,65976.0,0.43339594]
[1727470931334,0.000828,65977.0,65976.0,0.42239594]
[1727470931830,0.001828,65977.0,65976.0,0.43339594]
[1727470932319,0.000828,65977.0,65976.0,0.42239594]
[1727470932561,0.001828,65977.0,65976.0,0.43739594]
[1727470932798,0.002828,65977.0,65976.0,0.43739594]
[1727470933920,0.001828,65977.0,65976.0,0.42639593]
[1727470934861,0.002828,65977.0,65976.0,0.43739593]
[1727470941314,0.002828,65977.0,65976.0,0.63044096]
[1727470942375,0.002828,65977.0,65976.0,0.63044095]
[1727470952901,0.002828,65977.0,65976.0,0.63044094]
[1727470956212,0.002828,65977.0,65976.0,0.63427666]
[1727470958698,0.002828,65977.0,65976.0,0.73427666]
[1727470959727,0.000828,65977.0,65976.0,0.71927666]
[1727470960186,0.001828,65977.0,65976.0,0.73327666]
[1727470960564,0.000828,65977.0,65976.0,0.71927666]
[1727470960907,0.000828,65977.0,65976.0,0.74727666]
[1727470961008,0.001828,65977.0,65976.0,0.76127666]
[1727470961213,0.002828,65977.0,65976.0,0.77527666]
[1727470961417,0.001828,65977.0,65976.0,0.76127666]
[1727470961848,0.002828,65977.0,65976.0,0.77527665]
[1727470967551,0.002828,65977.0,65976.0,0.66043162]
[1727470967793,0.002828,65977.0,65976.0,0.77527665]
[1727470970267,0.002828,65977.0,65976.0,0.45543162]
[1727470970490,0.002828,65977.0,65976.0,0.4515959]
[1727470981180,0.002828,65977.0,65976.0,0.29630796]
[1727470981181,0.180728,65977.0,65976.0,0.29630796]
[1727470986267,0.180728,65977.0,65976.0,0.19630796]
[1727470987442,0.180728,65977.0,65976.0,0.04473796]
[1727470988647,0.332295,65977.0,65976.0,0.04473796]
[1727470988868,0.37776934,65977.0,65976.0,0.02827751]
[1727470989319,0.332295,65977.0,65976.0,0.02827751]
[1727470989525,0.332295,65977.0,65976.0,0.00027751]
[1727470989526,0.375758,65977.0,65976.0,0.00027751]
[1727470989754,0.375758,65977.0,65976.0,0.00727751]
[1727470990000,0.330295,65977.0,65976.0,0.01327751]
[1727470990237,0.330295,65977.0,65976.0,0.00627751]
[1727470990504,0.37574828,65977.0,65976.0,0.00627751]
[1727470990974,0.37674828,65977.0,65976.0,0.00627751]
[1727470991213,0.51389253,65977.0,65976.0,0.00627751]
[1727470992152,0.46843925,65977.0,65976.0,0.00627751]
[1727470999155,0.331295,65977.0,65976.0,0.00627751]
[1727471001005,0.44824562,65977.0,65976.0,0.00627751]
[1727471001220,0.47097394,65977.0,65976.0,0.00627751]
[1727471002078,0.47070954,65977.0,65976.0,0.00627751]
[1727471003232,0.37978354,65977.0,65976.0,0.00627751]
[1727471004102,0.447844,65977.0,65976.0,0.00627751]
[1727471004334,0.44784362,65977.0,65976.0,0.00627751]
[1727471005391,0.37978354,65977.0,65976.0,0.00627751]
[1727471006145,0.48375231,65977.0,65976.0,0.00627751]
[1727471007924,0.37978354,65977.0,65976.0,0.00627751]
[1727471008414,0.42513633,65977.0,65976.0,0.00627751]
[1727471008637,0.37978354,65977.0,65976.0,0.00627751]
[1727471009332,0.42513579,65977.0,65976.0,0.00627751]
[1727471009540,0.37978354,65977.0,65976.0,0.00627751]
[1727471010418,0.5361716,65977.0,65976.0,0.00627751]
[1727471011250,0.37978354,65977.0,65976.0,0.00627751]
[1727471014103,0.44781833,65977.0,65976.0,0.00627751]
[1727471014319,0.37978354,65977.0,65976.0,0.00627751]
[1727471014532,0.44782664,65977.0,65976.0,0.00627751]
[1727471015178,0.44783101,65977.0,65976.0,0.00627751]
[1727471015386,0.37978354,65977.0,65976.0,0.00627751]
[1727471016556,0.62689574,65977.0,65976.0,0.00627751]
[1727471016764,0.5381716,65977.0,65976.0,0.00627751]
[1727471016975,0.65161403,65977.0,65976.0,0.00627751]
[1727471017217,0.5381716,65977.0,65976.0,0.00627751]
[1727471018719,0.5371716,65977.0,65976.0,0.00027751]
[1727471019066,0.5391716,65977.0,65976.0,0.00127751]
[1727471019266,0.5371716,65977.0,65976.0,0.00027751]
[1727471019674,0.5391716,65977.0,65976.0,0.00127751]
[1727471021263,0.5391716,65977.0,65976.0,0.00227751]
[1727471021735,0.5441716,65977.0,65976.0,0.00227751]
[1727471022161,0.5491716,65977.0,65976.0,0.00227751]
[1727471022605,0.5541716,65977.0,65976.0,0.00227751]
[1727471022826,0.69025781,65977.0,65976.0,0.00227751]
[1727471023687,0.5541716,65977.0,65976.0,0.00227751]
[1727471024121,0.5521716,65977.0,65976.0,0.00227751]
[1727471025023,0.68837213,65977.0,65976.0,0.00227751]